fUST/lending_fUST_20250623
["ID","MTS","AMOUNT","RATE_DAILY","PERIOD"]
[367105399,1750661447572,-460.0,0.00021917,2]
[367105400,1750661447581,-5251.6,0.00021917,2]
[367105401,1750661447590,-460.0,0.00021917,2]
[367105402,1750661447599,-1870.56,0.00021917,2]
[367105403,1750661447609,-710.47,0.00021917,2]
[367105404,1750661447618,-460.0,0.00021917,2]
[367105405,1750661447627,-2164.21,0.00021917,2]
[367105406,1750661447637,-460.0,0.00021917,2]
[367105407,1750661447647,-645.77,0.00021917,2]
[367105408,1750661447656,-958.78,0.00021917,2]
[367105409,1750661447666,-460.0,0.00021917,2]
[367105410,1750661447676,-642.85,0.00021917,2]
[367105411,1750661447685,-460.0,0.00021917,2]
[367105412,1750661447694,-2982.33,0.00021917,2]
[367105413,1750661447703,-460.0,0.00021917,2]
[367105414,1750661447713,-460.0,0.00021917,2]
[367105415,1750661447723,-460.0,0.00021917,2]
[367105416,1750661447732,-460.0,0.00021917,2]
[367105417,1750661447741,-460.0,0.00021917,2]
[367105418,1750661447751,-536.37,0.00021917,2]
[367105419,1750661447761,-460.0,0.00021917,2]
[367105420,1750661447771,-1190.77,0.00021917,2]
[367105421,1750661447780,-460.0,0.00021917,2]
[367105422,1750661447791,-460.0,0.00021917,2]
[367105423,1750661447799,-460.0,0.00021917,2]
[367105424,1750661447809,-460.0,0.00021917,2]
[367105425,1750661447818,-881.75,0.00021917,2]
[367105426,1750661447827,-1623.47,0.00021917,2]
[367105427,1750661447837,-460.0,0.00021917,2]
[367105428,1750661447847,-649.72,0.00021917,2]
[367105429,1750661447858,-460.0,0.00021917,2]
[367105430,1750661447867,-460.0,0.00021917,2]
[367105431,1750661447881,-460.0,0.00021917,2]
[367105432,1750661447892,-162.530966,0.00021918,2]
[367105433,1750661447902,-576.88925919,0.00021918,7]
[367105434,1750661447912,-259.27366954,0.00021918,2]
[367105435,1750661447921,-160.0,0.00021938,2]
[367105436,1750661447930,-160.0,0.00021938,2]
[367105437,1750661447940,-213.63163053,0.00021939,2]
[367105438,1750661447950,-230.18214666,0.00021939,2]
[367105439,1750661447959,-160.0,0.00021939,2]
[367105440,1750661447969,-425.08510397,0.00021939,2]
[367105441,1750661447979,-160.0,0.00021939,2]
[367105442,1750661447989,-846.53928378,0.00021939,2]
[367105443,1750661447998,-160.0,0.00021939,2]
[367105444,1750661448008,-160.0,0.00021939,2]
[367105445,1750661448018,-836.70095952,0.00021939,2]
[367105446,1750661448027,-12553.69357174,0.0002194,2]
[367105447,1750661448037,-151.0,0.00021944,2]
[367105448,1750661448047,-151.0,0.00021944,2]
[367105449,1750661448057,-198.0,0.00021944,2]
[367105450,1750661448066,-198.0,0.00021944,2]
[367105451,1750661448076,-151.0,0.00021944,2]
[367105452,1750661448085,-198.0,0.00021944,2]
[367105453,1750661448095,-151.0,0.00021944,2]
[367105454,1750661448105,-500.0,0.00021944,2]
[367105455,1750661448114,-151.0,0.00021944,2]
[367105456,1750661448124,-151.0,0.00021944,2]
[367105457,1750661448133,-198.0,0.00021944,2]
[367105458,1750661448143,-151.0,0.00021972,2]
[367105459,1750661448152,-198.0,0.00021972,2]
[367105460,1750661448162,-198.0,0.00021972,2]
[367105461,1750661448172,-198.0,0.00021972,2]
[367105462,1750661448181,-500.0,0.00021972,2]
[367105463,1750661448191,-198.0,0.00021972,2]
[367105464,1750661448200,-198.0,0.00021972,2]
[367105465,1750661448209,-151.0,0.00021972,2]
[367105466,1750661448219,-151.0,0.00021972,2]
[367105467,1750661448228,-151.0,0.00021972,2]
[367105468,1750661448237,-151.0,0.00021972,2]
[367105469,1750661448247,-151.0,0.00021972,2]
[367105470,1750661448256,-151.0,0.00021972,2]
[367105471,1750661448266,-151.0,0.00021972,2]
[367105472,1750661448276,-151.0,0.00021972,2]
[367105473,1750661448286,-502.55035468,0.00021973,2]
[367105474,1750661448295,-500.0,0.00021973,2]
[367105475,1750661448305,-211.19422828,0.00021973,2]
[367105476,1750661448314,-500.0,0.00021973,2]
[367105477,1750661448324,-581.9702967,0.00021973,2]
[367105478,1750661448333,-500.0,0.00021973,2]
[367105479,1750661448343,-500.0,0.00021973,2]
[367105480,1750661448352,-211.08068204,0.00021973,2]
[367105481,1750661448362,-502.2469423,0.00021973,2]
[367105482,1750661448372,-500.0,0.00021973,2]
[367105483,1750661448381,-500.0,0.00021973,2]
[367105484,1750661448391,-500.0,0.00021973,2]
[367105485,1750661448400,-500.0,0.00021973,2]
[367105486,1750661448410,-500.0,0.00021973,2]
[367105487,1750661448419,-500.72944794,0.00021973,2]
[367105488,1750661448428,-500.0,0.00021973,2]
[367105489,1750661448438,-500.0,0.00021973,2]
[367105490,1750661448448,-500.0,0.00021973,2]
[367105491,1750661448458,-500.0,0.00021973,2]
[367105492,1750661448467,-167.62540763,0.00021973,2]
[367105493,1750661448477,-500.0,0.00021973,2]
[367105494,1750661448487,-500.0,0.00021973,2]
[367105495,1750661448496,-500.0,0.00021973,2]
[367105496,1750661448506,-500.0,0.00021973,2]
[367105497,1750661448516,-500.0,0.00021973,2]
[367105498,1750661448525,-500.0,0.00021973,2]
[367105499,1750661448535,-627.1042849,0.00021973,2]
[367105500,1750661448545,-500.0,0.00021973,2]
[367105501,1750661448554,-500.0,0.00021973,2]
[367105502,1750661448564,-501.31662438,0.00021973,2]
[367105503,1750661448573,-355.19936786,0.00021973,2]
[367105504,1750661448583,-6431.30042896,0.00021984,2]
[367105505,1750661448593,-200.0,0.00021999,2]
[367105506,1750661448603,-151.0,0.00021999,2]
[367105507,1750661448613,-500.0,0.00021999,2]
[367105508,1750661448622,-151.0,0.00021999,2]
[367105509,1750661448633,-151.0,0.00021999,2]
[367105510,1750661448643,-151.0,0.00021999,2]
[367105511,1750661448653,-151.0,0.00021999,2]
[367105512,1750661448663,-151.0,0.00021999,2]
[367105513,1750661448673,-10084.52592246,0.00022,2]
[367105514,1750661448683,-14621.59575445,0.00022,2]
[367105515,1750661448693,-601032.86971071,0.00022,2]
[367105516,1750661449418,-460.0,0.00021917,2]
[367105517,1750661449428,-423.4834714,0.00022,2]
[367105518,1750661449442,-3452.75245384,0.00022,2]
[367105519,1750661450427,-500.0,0.00021778,2]
[367105520,1750661450437,-500.0,0.00021778,2]
[367105521,1750661450446,-500.0,0.00021778,2]
[367105522,1750661450455,-168.680614,0.00021778,2]
[367105523,1750661450550,-331.319386,0.00021778,2]
[367105524,1750661450559,-500.0,0.00021778,2]
[367105525,1750661450569,-500.0,0.00021778,2]
[367105526,1750661450578,-6.061529,0.00021778,2]
[367105527,1750661450590,-493.938471,0.00021778,2]
[367105528,1750661450600,-350.0,0.00021778,2]
[367105529,1750661450610,-500.0,0.00021778,2]
[367105530,1750661450619,-500.0,0.00021778,2]
[367105531,1750661450628,-500.0,0.00021778,2]
[367105532,1750661450638,-500.0,0.00021778,2]
[367105533,1750661450648,-1230.43,0.00021907,10]
[367105534,1750661450657,-460.0,0.00021917,2]
[367105535,1750661450667,-460.0,0.00021917,2]
[367105536,1750661450676,-57.63414725,0.00021917,2]
[367105537,1750661450687,-402.36585275,0.00021917,2]
[367105538,1750661450697,-172.11364143,0.00022,2]
[367105539,1750661450708,-1530.18372225,0.00022,2]
[367105540,1750661450723,-4816.77448651,0.00022,2]
[367105544,1750661673508,150.0,0.000199,2]
[367105546,1750661974665,678.56400016,0.000199,2]
[367105547,1750661995182,163.18299318,0.0001987,2]
[367105548,1750662002805,1239.61279488,0.000201,2]
[367105549,1750662048075,452.3760001,0.000199,2]
[367105550,1750662079346,273.528541,0.00013699,2]
[367105551,1750662080104,-151.0,0.00020187,2]
[367105552,1750662086366,-122.528541,0.00020187,2]
[367105553,1750662086390,-38.98703318,0.00020383,2]
[367105555,1750662104064,-215.0,0.0002028,2]
[367105556,1750662115405,-151.52820238,0.00020157,2]
[367105557,1750662121035,151.52820238,0.000201,2]
[367105558,1750662136831,21448.24679389,0.00019903,2]
[367105559,1750662136855,3451.75320611,0.00019903,2]
[367105560,1750662183375,255.5690713,0.00019882,2]
[367105563,1750662264525,200.0,0.00024,30]
[367105564,1750662276112,301.58400007,0.000199,2]
[367105565,1750662296893,158.30979591,0.00019671,2]
[367105566,1750662310940,441.12588692,0.000201,2]
[367105567,1750662349522,201.05600005,0.000199,2]
[367105568,1750662427141,-203.92876562,0.00020157,2]
[367105569,1750662427164,-300.0,0.00020278,2]
[367105570,1750662427189,-300.0,0.00020278,2]
[367105571,1750662427211,-300.0,0.00020279,2]
[367105572,1750662427234,-300.0,0.00020279,2]
[367105573,1750662427256,-300.0,0.00020279,2]
[367105574,1750662427279,-1200.0,0.00020279,2]
[367105575,1750662427301,-1824.39516003,0.0002028,2]
[367105578,1750662559106,-300.0,0.00020279,2]
[367105579,1750662559126,-10657.00864577,0.0002028,2]
[367105580,1750662562120,-148.5928042,0.00020383,2]
[367105581,1750662562144,-263.80022871,0.00020393,2]
[367105582,1750662562166,-207.4,0.00020472,2]
[367105583,1750662562187,-724.76405364,0.00020472,2]
[367105584,1750662562208,-245.0,0.00020472,2]
[367105585,1750662562229,-4274.27408473,0.00020472,2]
[367105586,1750662565728,272.99030788,0.0002018,2]
[367105587,1750662569431,358.450388,0.00019992,2]
[367105588,1750662577335,150.0,0.000189,2]
[367105634,1750662631950,-207.4,0.00020442,2]
[367105635,1750662631959,-300.0,0.00020483,2]
[367105636,1750662631969,-300.0,0.00020483,2]
[367105638,1750662631978,-300.0,0.00020483,2]
[367105640,1750662631987,-1200.0,0.00020483,2]
[367105642,1750662631996,-7317.02415906,0.00020485,2]
[367105699,1750662637869,-2682.97584094,0.00020485,2]
[367105701,1750662637882,-402.03384272,0.00020493,2]
[367105703,1750662637898,-168.0,0.00020586,2]
[367105705,1750662637907,-168.0,0.00020652,2]
[367105707,1750662637916,-255.0,0.0002081,2]
[367105709,1750662637926,-255.0,0.00020815,2]
[367105711,1750662637935,-3523.70675708,0.00020815,2]
[367105713,1750662637945,-168.0,0.00020815,2]
[367105715,1750662637954,-255.0,0.0002082,2]
[367105717,1750662637963,-173.07896633,0.00020825,2]
[367105719,1750662637973,-187.2774326,0.00020911,2]
[367105722,1750662637983,-419.0046513,0.00020919,2]
[367105725,1750662637992,-173.96972417,0.0002099,2]
[367105727,1750662638002,-272.99030787,0.00020999,2]
[367105729,1750662638011,-2237.3303984,0.00021054,2]
[367105731,1750662638021,-365.8891638,0.00021141,2]
[367105733,1750662638030,-365.8891638,0.00021141,2]
[367105735,1750662638040,-365.8891638,0.00021141,2]
[367105737,1750662638050,-197.449741,0.00021152,2]
[367105739,1750662638060,-365.8891638,0.00021241,2]
[367105741,1750662638070,-200.3151912,0.00021425,5]
[367105743,1750662638079,-500.0,0.00021532,2]
[367105745,1750662638088,-241.76878976,0.00021532,2]
[367105747,1750662638098,-500.0,0.00021532,2]
[367105749,1750662638108,-500.0,0.00021532,2]
[367105751,1750662638117,-500.0,0.00021532,2]
[367105753,1750662638127,-500.0,0.00021532,2]
[367105755,1750662638138,-500.0,0.00021532,2]
[367105757,1750662638148,-500.0,0.00021532,2]
[367105759,1750662638158,-500.0,0.00021532,2]
[367105761,1750662638168,-500.0,0.00021532,2]
[367105763,1750662638178,-500.0,0.00021532,2]
[367105765,1750662638187,-500.0,0.00021532,2]
[367105767,1750662638197,-500.0,0.00021532,2]
[367105769,1750662638206,-524.78036498,0.00021532,2]
[367105771,1750662638215,-500.0,0.00021532,2]
[367105773,1750662638225,-500.0,0.00021532,2]
[367105775,1750662638234,-500.0,0.00021532,2]
[367105777,1750662638244,-500.0,0.00021532,2]
[367105779,1750662638255,-200.05829423,0.00021532,2]
[367105781,1750662638265,-380.05620664,0.00021532,2]
[367105783,1750662638275,-500.0,0.00021532,2]
[367105785,1750662638284,-500.0,0.00021532,2]
[367105787,1750662638295,-500.0,0.00021532,2]
[367105789,1750662638305,-500.0,0.00021532,2]
[367105791,1750662638315,-500.0,0.00021532,2]
[367105793,1750662638327,-500.0,0.00021532,2]
[367105796,1750662638339,-500.0,0.00021532,2]
[367105798,1750662638349,-500.0,0.00021532,2]
[367105800,1750662638359,-500.0,0.00021532,2]
[367105802,1750662638369,-500.0,0.00021532,2]
[367105804,1750662638379,-500.0,0.00021532,2]
[367105806,1750662638389,-500.0,0.00021532,2]
[367105808,1750662638400,-500.0,0.00021532,2]
[367105810,1750662638410,-500.0,0.00021532,2]
[367105812,1750662638420,-500.0,0.00021532,2]
[367105814,1750662638429,-500.0,0.00021532,2]
[367105817,1750662638441,-499.99999999,0.00021532,2]
[367105819,1750662638452,-10525.58114,0.00021533,2]
[367105821,1750662638462,-354.5343632,0.00021534,2]
[367105823,1750662638472,-574.5372799,0.00021534,2]
[367105825,1750662638482,-153.0,0.00021534,2]
[367105827,1750662638492,-162.9313504,0.00021534,2]
[367105829,1750662638507,-177.2671816,0.00021534,2]
[367105831,1750662638517,-153.0,0.00021534,2]
[367105833,1750662638528,-574.7458077,0.00021534,2]
[367105835,1750662638538,-153.0,0.00021534,2]
[367105838,1750662638551,-177.3437282,0.00021534,2]
[367105840,1750662638561,-153.0,0.00021534,2]
[367105842,1750662638571,-574.7458077,0.00021534,2]
[367105844,1750662638582,-159.1393301,0.00021534,2]
[367105846,1750662638592,-153.0,0.00021534,2]
[367105848,1750662638602,-159.1393301,0.00021534,2]
[367105850,1750662638612,-574.7458077,0.00021534,2]
[367105852,1750662638623,-153.0,0.00021534,2]
[367105854,1750662638634,-153.0,0.00021534,2]
[367105857,1750662638644,-177.3437282,0.00021534,2]
[367105859,1750662638654,-177.3437282,0.00021534,2]
[367105861,1750662638664,-159.1393301,0.00021534,2]
[367105863,1750662638674,-572.0719695,0.00021534,2]
[367105865,1750662638685,-153.0,0.00021534,2]
[367105867,1750662638695,-153.0,0.00021534,2]
[367105869,1750662638705,-153.0,0.00021534,2]
[367105871,1750662638715,-177.3437282,0.00021534,2]
[367105873,1750662638725,-153.0,0.00021534,2]
[367105875,1750662638735,-159.1393301,0.00021534,2]
[367105877,1750662638746,-169.9414288,0.00021534,2]
[367105879,1750662638756,-159.1393301,0.00021534,2]
[367105881,1750662638766,-159.1393301,0.00021534,2]
[367105883,1750662638776,-159.1393301,0.00021534,2]
[367105885,1750662638786,-159.1393301,0.00021534,2]
[367105887,1750662638796,-168.0,0.0002162,2]
[367105889,1750662638806,-365.8891638,0.00021644,2]
[367105891,1750662638816,-365.8891638,0.00021644,2]
[367105894,1750662638827,-365.8891638,0.00021644,2]
[367105896,1750662638837,-396.086,0.00021765,2]
[367105898,1750662638847,-1000.0,0.00021778,2]
[367105900,1750662638858,-1000.0,0.00021779,2]
[367105902,1750662638868,-1000.0,0.00021779,2]
[367105904,1750662638879,-395.0,0.00021786,3]
[367105906,1750662638889,-215.0738,0.00021811,2]
[367105908,1750662638899,-160.0,0.00021812,2]
[367105910,1750662638909,-1593.63840496,0.00021817,2]
[367105912,1750662638920,-1489.55702609,0.00021817,2]
[367105914,1750662638930,-272.99030787,0.00021817,2]
[367105916,1750662638941,-1593.63840495,0.00021838,2]
[367105918,1750662638951,-1593.63840495,0.00021859,2]
[367105921,1750662638961,-1593.63840495,0.00021879,2]
[367105923,1750662638971,-203.17,0.00021899,2]
[367105925,1750662638982,-1000.0,0.00021899,2]
[367105927,1750662638993,-1000.0,0.00021899,2]
[367105929,1750662639004,-1593.63840495,0.000219,2]
[367105931,1750662639014,-1959.87032415,0.000219,2]
[367105933,1750662639023,-847.91,0.00021907,3]
[367105935,1750662639034,-1648.16,0.00021907,3]
[367105937,1750662639044,-824.08,0.00021907,3]
[367105939,1750662639055,-412.04,0.00021907,3]
[367105941,1750662639065,-206.02,0.00021907,3]
[367105943,1750662639075,-618.1,0.00021907,3]
[367105945,1750662639085,-500.0,0.00021916,2]
[367105947,1750662639095,-500.0,0.00021916,2]
[367105949,1750662639106,-500.0,0.00021916,2]
[367105951,1750662639116,-500.0,0.00021916,2]
[367105953,1750662639126,-225.92449804,0.00021916,2]
[367105956,1750662639136,-500.0,0.00021916,2]
[367105958,1750662639147,-500.0,0.00021916,2]
[367105960,1750662639157,-500.0,0.00021916,2]
[367105962,1750662639167,-500.0,0.00021916,2]
[367105964,1750662639177,-500.0,0.00021916,2]
[367105966,1750662639187,-329.81066364,0.00021916,2]
[367105968,1750662639196,-217.14339417,0.00021916,2]
[367105970,1750662639206,-500.0,0.00021916,2]
[367105973,1750662639224,-500.0,0.00021916,2]
[367105975,1750662639237,-500.0,0.00021916,2]
[367105977,1750662639248,-500.0,0.00021916,2]
[367105979,1750662639259,-500.0,0.00021916,2]
[367105981,1750662639270,-500.0,0.00021916,2]
[367105984,1750662639281,-500.0,0.00021916,2]
[367105986,1750662639293,-450.0,0.00021916,2]
[367105988,1750662639303,-500.0,0.00021916,2]
[367105990,1750662639315,-550.0,0.00021916,2]
[367105992,1750662639325,-1565.853497,0.00021916,2]
[367105994,1750662639336,-1000.0,0.00021916,2]
[367105996,1750662639347,-969.3210115,0.00021916,2]
[367105998,1750662639358,-581.43968787,0.00021917,2]
[367106001,1750662639368,-460.0,0.00021917,2]
[367106003,1750662639380,-460.57791091,0.00021917,2]
[367106005,1750662639390,-444.25031917,0.00021917,2]
[367106007,1750662639401,-460.0,0.00021917,2]
[367106009,1750662639411,-956.85,0.00021917,2]
[367106011,1750662639421,-460.0,0.00021917,2]
[367106013,1750662639432,-460.0,0.00021917,2]
[367106015,1750662639443,-152.07341766,0.00021917,2]
[367106018,1750662639453,-460.0,0.00021917,2]
[367106021,1750662639463,-460.0,0.00021917,2]
[367106023,1750662639474,-819.92,0.00021917,2]
[367106025,1750662639484,-460.0,0.00021917,2]
[367106027,1750662639495,-460.0,0.00021917,2]
[367106029,1750662639509,-460.0,0.00021917,2]
[367106031,1750662639520,-312.9862047,0.00021917,2]
[367106033,1750662639530,-1000.0,0.00021917,2]
[367106035,1750662639540,-460.0,0.00021917,2]
[367106037,1750662639551,-460.0,0.00021917,2]
[367106039,1750662639562,-460.0,0.00021917,2]
[367106041,1750662639572,-460.0,0.00021917,2]
[367106043,1750662639587,-460.0,0.00021917,2]
[367106046,1750662639597,-500.0,0.00021917,2]
[367106048,1750662639608,-500.0,0.00021917,2]
[367106050,1750662639618,-500.0,0.00021917,2]
[367106052,1750662639627,-500.0,0.00021917,2]
[367106055,1750662639638,-500.0,0.00021917,2]
[367106058,1750662639648,-500.0,0.00021917,2]
[367106061,1750662639659,-500.0,0.00021917,2]
[367106063,1750662639670,-384.13,0.00021917,2]
[367106065,1750662639680,-460.0,0.00021917,2]
[367106068,1750662639690,-460.0,0.00021917,2]
[367106070,1750662639700,-460.0,0.00021917,2]
[367106072,1750662639710,-460.0,0.00021917,2]
[367106074,1750662639720,-460.0,0.00021917,2]
[367106076,1750662639731,-460.0,0.00021917,2]
[367106078,1750662639741,-460.0,0.00021917,2]
[367106080,1750662639751,-460.0,0.00021917,2]
[367106082,1750662639764,-460.0,0.00021917,2]
[367106084,1750662639774,-460.0,0.00021917,2]
[367106086,1750662639785,-460.0,0.00021917,2]
[367106088,1750662639797,-599.04,0.00021917,2]
[367106091,1750662639807,-460.0,0.00021917,2]
[367106093,1750662639818,-460.0,0.00021917,2]
[367106095,1750662639828,-235.83248476,0.00021917,2]
[367106097,1750662639838,-695.31,0.00021917,2]
[367106099,1750662639848,-460.0,0.00021917,2]
[367106101,1750662639858,-500.0,0.00021917,2]
[367106103,1750662639868,-193.79483527,0.00021917,2]
[367106105,1750662639878,-460.0,0.00021917,2]
[367106107,1750662639888,-652.43,0.00021917,2]
[367106109,1750662639898,-462.08206364,0.00021917,2]
[367106111,1750662639908,-460.0,0.00021917,2]
[367106113,1750662639918,-483.76,0.00021917,2]
[367106115,1750662639928,-460.0,0.00021917,2]
[367106118,1750662639938,-460.0,0.00021917,2]
[367106120,1750662639948,-1652.07,0.00021917,2]
[367106122,1750662639958,-460.0,0.00021917,2]
[367106124,1750662639968,-388.7496603,0.00021917,2]
[367106126,1750662639978,-460.0,0.00021917,2]
[367106128,1750662639988,-460.0,0.00021917,2]
[367106130,1750662639998,-460.0,0.00021917,2]
[367106132,1750662640008,-460.0,0.00021917,2]
[367106134,1750662640018,-460.0,0.00021917,2]
[367106136,1750662640028,-460.0,0.00021917,2]
[367106138,1750662640038,-460.0,0.00021917,2]
[367106140,1750662640049,-460.0,0.00021917,2]
[367106142,1750662640059,-460.0,0.00021917,2]
[367106145,1750662640069,-460.0,0.00021917,2]
[367106147,1750662640079,-460.0,0.00021917,2]
[367106149,1750662640088,-530.23,0.00021917,2]
[367106151,1750662640098,-460.0,0.00021917,2]
[367106153,1750662640112,-460.0,0.00021917,2]
[367106155,1750662640122,-460.0,0.00021917,2]
[367106157,1750662640133,-460.0,0.00021917,2]
[367106159,1750662640143,-460.0,0.00021917,2]
[367106162,1750662640154,-460.0,0.00021917,2]
[367106164,1750662640164,-460.0,0.00021917,2]
[367106166,1750662640175,-460.0,0.00021917,2]
[367106168,1750662640186,-460.0,0.00021917,2]
[367106170,1750662640197,-460.0,0.00021917,2]
[367106172,1750662640207,-460.0,0.00021917,2]
[367106174,1750662640218,-460.0,0.00021917,2]
[367106176,1750662640228,-460.0,0.00021917,2]
[367106178,1750662640239,-460.0,0.00021917,2]
[367106180,1750662640248,-460.0,0.00021917,2]
[367106183,1750662640259,-543.51454168,0.00021917,2]
[367106185,1750662640270,-460.0,0.00021917,2]
[367106187,1750662640280,-460.0,0.00021917,2]
[367106189,1750662640291,-460.0,0.00021917,2]
[367106191,1750662640303,-270.71606931,0.00021917,2]
[367106193,1750662640313,-460.0,0.00021917,2]
[367106195,1750662640324,-460.0,0.00021917,2]
[367106197,1750662640334,-460.0,0.00021917,2]
[367106199,1750662640344,-460.0,0.00021917,2]
[367106201,1750662640355,-460.0,0.00021917,2]
[367106204,1750662640365,-490.33,0.00021917,2]
[367106206,1750662640376,-427.68469553,0.00021917,2]
[367106208,1750662640386,-464.46217809,0.00021917,2]
[367106210,1750662640396,-460.0,0.00021917,2]
[367106212,1750662640406,-460.0,0.00021917,2]
[367106214,1750662640416,-460.0,0.00021917,2]
[367106216,1750662640426,-460.0,0.00021917,2]
[367106218,1750662640437,-460.0,0.00021917,2]
[367106220,1750662640447,-460.0,0.00021917,2]
[367106222,1750662640457,-460.0,0.00021917,2]
[367106224,1750662640467,-632.0,0.00021917,2]
[367106227,1750662640478,-460.0,0.00021917,2]
[367106229,1750662640488,-400.55965487,0.00021917,2]
[367106231,1750662640499,-379.33988823,0.00021917,2]
[367106233,1750662640511,-460.0,0.00021917,2]
[367106235,1750662640521,-712.18,0.00021917,2]
[367106237,1750662640532,-460.0,0.00021917,2]
[367106239,1750662640542,-541.17,0.00021917,2]
[367106241,1750662640552,-460.0,0.00021917,2]
[367106243,1750662640562,-460.0,0.00021917,2]
[367106245,1750662640572,-460.0,0.00021917,2]
[367106247,1750662640582,-460.0,0.00021917,2]
[367106249,1750662640593,-500.0,0.00021917,2]
[367106252,1750662640603,-779.7,0.00021917,2]
[367106254,1750662640613,-885.15,0.00021917,2]
[367106256,1750662640624,-460.0,0.00021917,2]
[367106258,1750662640634,-836.73,0.00021917,2]
[367106260,1750662640645,-689.95,0.00021917,2]
[367106262,1750662640655,-460.0,0.00021917,2]
[367106264,1750662640666,-616.06,0.00021917,2]
[367106266,1750662640676,-569.87,0.00021917,2]
[367106268,1750662640686,-460.0,0.00021917,2]
[367106270,1750662640697,-1814.89,0.00021917,2]
[367106272,1750662640707,-510.23087786,0.00021917,2]
[367106275,1750662640717,-460.0,0.00021917,2]
[367106277,1750662640727,-881.75,0.00021917,2]
[367106279,1750662640737,-460.0,0.00021917,2]
[367106281,1750662640747,-972.45,0.00021917,2]
[367106283,1750662640758,-1182.49,0.00021917,2]
[367106285,1750662640768,-1997.33,0.00021917,2]
[367106287,1750662640778,-677.97,0.00021917,2]
[367106289,1750662640788,-248.99942428,0.00021917,2]
[367106291,1750662640798,-2034.23,0.00021917,2]
[367106293,1750662640808,-576.09,0.00021917,2]
[367106295,1750662640819,-1055.2,0.00021917,2]
[367106297,1750662640829,-1083.96,0.00021917,2]
[367106299,1750662640840,-460.0,0.00021917,2]
[367106302,1750662640850,-460.0,0.00021917,2]
[367106304,1750662640862,-460.0,0.00021917,2]
[367106306,1750662640873,-460.0,0.00021917,2]
[367106308,1750662640883,-1229.17,0.00021917,2]
[367106310,1750662640894,-460.0,0.00021917,2]
[367106312,1750662640904,-477.13,0.00021917,2]
[367106314,1750662640915,-460.0,0.00021917,2]
[367106316,1750662640926,-460.0,0.00021917,2]
[367106319,1750662640938,-460.0,0.00021917,2]
[367106324,1750662640951,-191.38634005,0.00021917,2]
[367106325,1750662641202,-460.0,0.00021917,2]
[367106326,1750662641211,-460.0,0.00021917,2]
[367106327,1750662641220,-1181.16,0.00021917,2]
[367106328,1750662641230,-460.0,0.00021917,2]
[367106330,1750662641239,-460.0,0.00021917,2]
[367106332,1750662641249,-460.0,0.00021917,2]
[367106334,1750662641258,-460.0,0.00021917,2]
[367106336,1750662641268,-525.38,0.00021917,2]
[367106337,1750662641278,-460.0,0.00021917,2]
[367106340,1750662641288,-460.0,0.00021917,2]
[367106341,1750662641298,-2978.27,0.00021917,2]
[367106343,1750662641307,-460.0,0.00021917,2]
[367106345,1750662641317,-196.43076231,0.00021917,2]
[367106347,1750662641326,-460.0,0.00021917,2]
[367106349,1750662641335,-460.0,0.00021917,2]
[367106351,1750662641344,-460.0,0.00021917,2]